lending/lending_fUSD_20250131
["ID","MTS","AMOUNT","RATE_DAILY","PERIOD"]
[351060501,1738319446622,-104.44,0.00016849,2]
[351060502,1738319446632,-329.53561987,0.00016986,2]
[351060503,1738319446644,-170.46438013,0.00016986,2]
[351060504,1738319446653,-500.0,0.00017123,2]
[351060505,1738319446663,-933.68507818,0.0001726,2]
[351060506,1738319446672,-410.37054169,0.0001726,2]
[351060507,1738319446687,-837.07801536,0.0001726,2]
[351060508,1738319446699,-1205.65144295,0.0001726,2]
[351060509,1738319446708,-500.0,0.0001726,2]
[351060510,1738319446718,-500.0,0.0001726,2]
[351060511,1738319446730,-500.0,0.0001726,2]
[351060512,1738319446739,-1469.14,0.0001726,2]
[351060513,1738319446748,-6352.52825707,0.0001726,2]
[351060514,1738319446767,-274.7999971,0.00016438,2]
[351060515,1738319446778,-939.95000075,0.00016438,2]
[351060516,1738319446789,-1736.72172685,0.00016438,2]
[351060517,1738319446813,-104.5482753,0.00016438,2]
[351060518,1738319446822,-171.11812625,0.0001726,2]
[351060519,1738319446835,-511.0,0.0001726,2]
[351060522,1738320565164,-157.7194262,0.00010137,2]
[351060534,1738320631490,-134.3305738,0.00010137,2]
[351060535,1738320631499,-292.24,0.00010137,2]
[351060536,1738320631508,-150.0,0.00012,2]
[351060537,1738320631517,-185.61,0.00012313,2]
[351060538,1738320631526,-82.4061092,0.00013,2]
[351060539,1738320631636,-467.5938908,0.00013,2]
[351060540,1738320631645,-150.0,0.00013199,2]
[351060541,1738320631654,-150.0,0.00014877,2]
[351060542,1738320631663,-600.0,0.00015,2]
[351060543,1738320631673,-192.8379381,0.00015067,2]
[351060544,1738320631682,-925.97,0.00015167,2]
[351060545,1738320631691,-43.66505219,0.00015433,2]
[351060546,1738320631710,-776.35494781,0.00015433,2]
[351060547,1738320631719,-885.92967472,0.00015691,2]
[351060548,1738320631837,-114.07032528,0.00015691,2]
[351060549,1738320631846,-948.13,0.0001579,2]
[351060550,1738320631855,-1124.0,0.0001579,2]
[351060552,1738320631864,-1110.0,0.000159,2]
[351060554,1738320631873,-300.0,0.00016337,2]
[351060556,1738320631882,-2508.68971363,0.00016338,2]
[351060624,1738320637341,-5606.92522076,0.00016338,2]
[351060625,1738320637350,-548.49008607,0.00016338,2]
[351060626,1738320637359,-192.83793809,0.00016338,2]
[351060627,1738320637367,-1551.58,0.00016428,2]
[351060629,1738320637377,-548.49008607,0.00016429,2]
[351060631,1738320637386,-241.4071876,0.00016437,2]
[351060632,1738320637395,-500.0,0.00016437,2]
[351060633,1738320637406,-500.0,0.00016437,2]
[351060634,1738320637416,-632.47771381,0.00016437,2]
[351060635,1738320637427,-500.0,0.00016437,2]
[351060636,1738320637436,-152.86884484,0.00016437,2]
[351060637,1738320637446,-464.73212304,0.00016437,2]
[351060638,1738320637456,-405.0,0.00016437,2]
[351060639,1738320637466,-500.0,0.00016438,2]
[351060640,1738320637475,-547.47,0.00016438,2]
[351060641,1738320637484,-500.0,0.00016438,2]
[351060642,1738320637494,-500.0,0.00016438,2]
[351060643,1738320637503,-500.0,0.00016438,2]
[351060644,1738320637513,-500.0,0.00016438,2]
[351060645,1738320637522,-42.13037785,0.00016438,2]
[351060646,1738320637539,-457.86962215,0.00016438,2]
[351060647,1738320637549,-500.0,0.00016438,2]
[351060648,1738320637558,-39.21607871,0.00016438,2]
[351060649,1738320637569,-460.78392129,0.00016438,2]
[351060650,1738320637578,-500.0,0.00016438,2]
[351060651,1738320637589,-500.0,0.00016438,2]
[351060652,1738320637598,-500.0,0.00016438,2]
[351060653,1738320637607,-500.0,0.00016438,2]
[351060654,1738320637616,-500.0,0.00016438,2]
[351060655,1738320637625,-500.0,0.00016438,2]
[351060656,1738320637633,-500.0,0.00016438,2]
[351060657,1738320637643,-256.97750263,0.00016438,2]
[351060695,1738320638303,-243.02249737,0.00016438,2]
[351060697,1738320638313,-500.0,0.00016438,2]
[351060698,1738320638322,-234.93338176,0.00016438,2]
[351060701,1738320638339,-329.05661824,0.00016438,2]
[351060703,1738320638348,-500.0,0.00016438,2]
[351060704,1738320638358,-500.0,0.00016438,2]
[351060706,1738320638367,-500.0,0.00016438,2]
[351060708,1738320638376,-500.0,0.00016438,2]
[351060710,1738320638386,-1398.56,0.00016438,2]
[351060711,1738320638396,-500.0,0.00016438,2]
[351060713,1738320638405,-500.0,0.00016438,2]
[351060715,1738320638413,-500.0,0.00016438,2]
[351060717,1738320638422,-500.0,0.00016438,2]
[351060719,1738320638431,-500.0,0.00016438,2]
[351060721,1738320638440,-500.0,0.00016438,2]
[351060723,1738320638449,-500.0,0.00016438,2]
[351060725,1738320638458,-500.0,0.00016438,2]
[351060727,1738320638467,-500.0,0.00016438,2]
[351060729,1738320638476,-500.0,0.00016438,2]
[351060730,1738320638485,-500.0,0.00016438,2]
[351060732,1738320638494,-500.0,0.00016438,2]
[351060734,1738320638503,-879.38,0.00016438,2]
[351060736,1738320638512,-504.3723775,0.00016438,2]
[351060738,1738320638521,-500.0,0.00016438,2]
[351060739,1738320638531,-500.0,0.00016438,2]
[351060741,1738320638540,-500.0,0.00016438,2]
[351060743,1738320638549,-500.0,0.00016438,2]
[351060745,1738320638558,-500.0,0.00016438,2]
[351060747,1738320638567,-500.0,0.00016438,2]
[351060749,1738320638576,-504.97463617,0.00016438,2]
[351060751,1738320638587,-500.0,0.00016438,2]
[351060753,1738320638595,-500.0,0.00016438,2]
[351060755,1738320638604,-500.0,0.00016438,2]
[351060756,1738320638613,-500.0,0.00016438,2]
[351060758,1738320638623,-504.9758344,0.00016438,2]
[351060760,1738320638632,-500.0,0.00016438,2]
[351060762,1738320638641,-500.0,0.00016438,2]
[351060764,1738320638651,-506.88312709,0.00016438,2]
[351060765,1738320638660,-500.0,0.00016438,2]
[351060767,1738320638669,-500.0,0.00016438,2]
[351060769,1738320638679,-500.0,0.00016438,2]
[351060771,1738320638688,-500.0,0.00016438,2]
[351060773,1738320638697,-500.0,0.00016438,2]
[351060775,1738320638706,-500.0,0.00016438,2]
[351060777,1738320638715,-500.0,0.00016438,2]
[351060779,1738320638724,-21.2789366,0.00016438,2]
[351060783,1738320638767,-384.49,0.00016438,2]
[351060828,1738320639449,-94.2310634,0.00016438,2]
[351060829,1738320639458,-500.0,0.00016438,2]
[351060830,1738320639468,-50.20471473,0.00016438,2]
[351060831,1738320639479,-449.79528527,0.00016438,2]
[351060832,1738320639488,-500.0,0.00016438,2]
[351060833,1738320639497,-500.0,0.00016438,2]
[351060834,1738320639506,-132.19793917,0.00016438,2]
[351060835,1738320639517,-367.80206083,0.00016438,2]
[351060836,1738320639526,-500.0,0.00016438,2]
[351060837,1738320639535,-501.56314819,0.00016438,2]
[351060838,1738320639544,-500.0,0.00016438,2]
[351060839,1738320639553,-500.0,0.00016438,2]
[351060840,1738320639562,-500.0,0.00016438,2]
[351060841,1738320639571,-1141.68,0.00016438,2]
[351060842,1738320639580,-500.0,0.00016438,2]
[351060843,1738320639591,-500.0,0.00016438,2]
[351060844,1738320639600,-500.0,0.00016438,2]
[351060845,1738320639608,-500.0,0.00016438,2]
[351060846,1738320639617,-1001.59,0.00016438,2]
[351060847,1738320639626,-500.0,0.00016438,2]
[351060848,1738320639635,-559.93,0.00016438,2]
[351060849,1738320639644,-500.0,0.00016438,2]
[351060850,1738320639653,-500.0,0.00016438,2]
[351060851,1738320639662,-500.0,0.00016438,2]
[351060852,1738320639672,-500.0,0.00016438,2]
[351060853,1738320639681,-549.69,0.00016438,2]
[351060854,1738320639690,-500.0,0.00016438,2]
[351060855,1738320639700,-500.0,0.00016438,2]
[351060856,1738320639709,-500.0,0.00016438,2]
[351060857,1738320639718,-1009.59,0.00016438,2]
[351060858,1738320639727,-500.0,0.00016438,2]
[351060859,1738320639736,-859.22,0.00016438,2]
[351060860,1738320639744,-500.0,0.00016438,2]
[351060861,1738320639754,-746.15,0.00016438,2]
[351060862,1738320639763,-500.0,0.00016438,2]
[351060863,1738320639772,-500.0,0.00016438,2]
[351060864,1738320639781,-500.0,0.00016438,2]
[351060865,1738320639790,-500.0,0.00016438,2]
[351060866,1738320639799,-500.0,0.00016438,2]
[351060867,1738320639808,-500.0,0.00016438,2]
[351060868,1738320639817,-500.0,0.00016438,2]
[351060869,1738320639826,-500.0,0.00016438,2]
[351060870,1738320639835,-516.63129735,0.00016438,2]
[351060871,1738320639844,-500.0,0.00016438,2]
[351060872,1738320639853,-100.15349363,0.00016438,2]
[351060873,1738320639867,-399.84650637,0.00016438,2]
[351060874,1738320639876,-265.25432943,0.00016438,2]
[351060875,1738320639885,-500.0,0.00016438,2]
[351060876,1738320639894,-478.2,0.00016438,2]
[351060877,1738320639904,-500.0,0.00016438,2]
[351060878,1738320639914,-519.89,0.00016438,2]
[351060879,1738320639924,-501.69007116,0.00016438,2]
[351060880,1738320639933,-504.09456911,0.00016438,2]
[351060881,1738320639942,-958.89494491,0.00016438,2]
[351060882,1738320639953,-305.50005067,0.00016438,2]
[351060883,1738320639964,-350.6800001,0.00016438,2]
[351060884,1738320639975,-379.77500432,0.00016438,2]
[351060885,1738320639985,-500.0,0.00016438,2]
[351060886,1738320639994,-30.87499568,0.00016438,2]
[351060887,1738320640005,-472.26391332,0.00016438,2]
[351060888,1738320640014,-570.58608668,0.00016438,2]
[351060889,1738320640027,-263.70391332,0.00016438,2]
[351060890,1738320640035,-62.89608668,0.00016438,2]
[351060891,1738320640047,-437.10391332,0.00016438,2]
[351060892,1738320640056,-46.49358667,0.00016438,2]
[351060905,1738320640261,-453.50641333,0.00016438,2]
[351060907,1738320640271,-503.62742751,0.00016438,2]
[351060909,1738320640279,-504.20265297,0.00016438,2]
[351060911,1738320640290,-500.0,0.00016438,2]
[351060913,1738320640299,-506.78138229,0.00016438,2]
[351060915,1738320640308,-500.0,0.00016438,2]
[351060917,1738320640317,-516.73608302,0.00016438,2]
[351060919,1738320640326,-500.0,0.00016438,2]
[351060921,1738320640335,-503.45394981,0.00016438,2]
[351060923,1738320640344,-500.0,0.00016438,2]
[351060925,1738320640353,-503.44300339,0.00016438,2]
[351060927,1738320640362,-500.0,0.00016438,2]
[351060929,1738320640373,-500.0,0.00016438,2]
[351060931,1738320640383,-500.0,0.00016438,2]
[351060933,1738320640392,-1795.52,0.00016438,2]
[351060935,1738320640401,-502.30492456,0.00016438,2]
[351060937,1738320640410,-501.94201304,0.00016438,2]
[351060939,1738320640419,-500.0,0.00016438,2]
[351060941,1738320640428,-500.0,0.00016438,2]
[351060942,1738320640438,-402.72706008,0.00016438,2]
[351060944,1738320640447,-1271.27,0.00016438,2]
[351060946,1738320640456,-500.0,0.00016438,2]
[351060948,1738320640466,-500.0,0.00016438,2]
[351060950,1738320640475,-343.74378433,0.00016438,2]
[351060952,1738320640484,-500.0,0.00016438,2]
[351060954,1738320640493,-32.95967425,0.00016438,2]
[351060956,1738320640506,-376.11990529,0.00016438,2]
[351060958,1738320640517,-453.588412,0.00016438,2]
[351060963,1738320640551,-293.09200846,0.00016438,2]
[351060965,1738320640562,-667.03,0.00016438,2]
[351060966,1738320640573,-500.0,0.00016438,2]
[351060968,1738320640582,-500.0,0.00016438,2]
[351060970,1738320640593,-307.06697449,0.00016438,2]
[351060972,1738320640602,-232.23270296,0.00016438,2]
[351060974,1738320640611,-174.59853026,0.00016438,2]
[351060977,1738320640623,-325.40146974,0.00016438,2]
[351060979,1738320640633,-715.32,0.00016438,2]
[351060981,1738320640642,-500.0,0.00016438,2]
[351060983,1738320640651,-688.84,0.00016438,2]
[351060985,1738320640660,-500.0,0.00016438,2]
[351060987,1738320640669,-503.79002721,0.00016438,2]
[351060988,1738320640678,-500.0,0.00016438,2]
[351060990,1738320640688,-500.0,0.00016438,2]
[351060992,1738320640697,-500.0,0.00016438,2]
[351060994,1738320640706,-500.0,0.00016438,2]
[351060996,1738320640715,-708.31,0.00016438,2]
[351060998,1738320640724,-500.0,0.00016438,2]
[351061000,1738320640733,-994.43,0.00016438,2]
[351061002,1738320640742,-500.0,0.00016438,2]
[351061004,1738320640751,-500.0,0.00016438,2]
[351061006,1738320640760,-1590.65,0.00016438,2]
[351061008,1738320640768,-500.0,0.00016438,2]
[351061010,1738320640777,-500.0,0.00016438,2]
[351061012,1738320640787,-879.05,0.00016438,2]
[351061014,1738320640795,-705.32,0.00016438,2]
[351061016,1738320640804,-504.67352403,0.00016438,2]
[351061018,1738320640813,-500.0,0.00016438,2]
[351061020,1738320640822,-500.0,0.00016438,2]
[351061022,1738320640831,-500.0,0.00016438,2]
[351061024,1738320640842,-500.0,0.00016438,2]
[351061026,1738320640851,-500.0,0.00016438,2]
[351061028,1738320640859,-500.0,0.00016438,2]
[351061030,1738320640868,-500.0,0.00016438,2]
[351061032,1738320640877,-504.31208152,0.00016438,2]
[351061034,1738320640886,-500.0,0.00016438,2]
[351061035,1738320640895,-500.0,0.00016438,2]
[351061037,1738320640904,-500.0,0.00016438,2]
[351061039,1738320640913,-500.0,0.00016438,2]
[351061041,1738320640922,-500.0,0.00016438,2]
[351061043,1738320640931,-500.0,0.00016438,2]
[351061045,1738320640941,-2201.82,0.00016438,2]
[351061047,1738320640950,-473.45165336,0.00016438,2]
[351061049,1738320640959,-500.0,0.00016438,2]
[351061051,1738320640968,-910.37,0.00016438,2]
[351061053,1738320640978,-500.0,0.00016438,2]
[351061055,1738320640987,-964.95,0.00016438,2]
[351061057,1738320640998,-1457.4,0.00016438,2]
[351061059,1738320641007,-505.70388337,0.00016438,2]
[351061061,1738320641016,-500.0,0.00016438,2]
[351061063,1738320641025,-500.0,0.00016438,2]
[351061065,1738320641035,-500.0,0.00016438,2]
[351061067,1738320641044,-500.0,0.00016438,2]
[351061069,1738320641053,-500.0,0.00016438,2]
[351061070,1738320641062,-2308.95,0.00016438,2]
[351061072,1738320641071,-2362.63,0.00016438,2]
[351061074,1738320641080,-500.0,0.00016438,2]
[351061075,1738320641090,-500.0,0.00016438,2]
[351061076,1738320641099,-500.0,0.00016438,2]
[351061077,1738320641111,-500.0,0.00016438,2]
[351061078,1738320641120,-503.8358611,0.00016438,2]
[351061079,1738320641129,-500.0,0.00016438,2]
[351061080,1738320641138,-502.89,0.00016438,2]
[351061081,1738320641147,-500.0,0.00016438,2]
[351061082,1738320641156,-500.0,0.00016438,2]
[351061083,1738320641165,-1496.9,0.00016438,2]
[351061084,1738320641175,-500.0,0.00016438,2]
[351061085,1738320641403,-500.0,0.00016438,2]
[351061086,1738320641414,-500.0,0.00016438,2]
[351061087,1738320641423,-500.0,0.00016438,2]
[351061088,1738320641432,-500.0,0.00016438,2]
[351061089,1738320641441,-500.0,0.00016438,2]
[351061090,1738320641450,-500.0,0.00016438,2]
[351061091,1738320641459,-500.0,0.00016438,2]
[351061092,1738320641468,-500.0,0.00016438,2]
[351061093,1738320641477,-294.7403941,0.00016438,2]
[351061094,1738320641487,-500.0,0.00016438,2]
[351061095,1738320641495,-807.34,0.00016438,2]
[351061096,1738320641505,-2305.72,0.00016438,2]
[351061097,1738320641514,-1004.04,0.00016438,2]
[351061098,1738320641523,-532.1,0.00016438,2]
[351061099,1738320641531,-500.0,0.00016438,2]
[351061100,1738320641540,-1763.57,0.00016438,2]
[351061101,1738320641549,-586.33642709,0.00016438,2]
[351061102,1738320641558,-1212.84,0.00016438,2]
[351061103,1738320641567,-2179.76,0.00016438,2]
[351061104,1738320641576,-500.0,0.00016438,2]
[351061105,1738320641586,-500.0,0.00016438,2]
[351061106,1738320641595,-500.0,0.00016438,2]
[351061107,1738320641605,-500.0,0.00016438,2]
[351061108,1738320641616,-500.0,0.00016438,2]
[351061109,1738320641626,-500.0,0.00016438,2]
[351061110,1738320641636,-545.67,0.00016438,2]
[351061111,1738320641646,-500.0,0.00016438,2]
[351061112,1738320641654,-1208.06,0.00016438,2]
[351061113,1738320641663,-580.46213417,0.00016438,2]
[351061114,1738320641672,-500.0,0.00016438,2]
[351061115,1738320641681,-508.77588254,0.00016438,2]
[351061116,1738320641690,-500.0,0.00016438,2]
[351061117,1738320641700,-500.0,0.00016438,2]
[351061118,1738320641709,-500.0,0.00016438,2]
[351061119,1738320641719,-500.0,0.00016438,2]
[351061120,1738320641728,-1823.33,0.00016438,2]
[351061121,1738320641739,-817.38,0.00016438,2]
[351061122,1738320641749,-443.01406066,0.00016438,2]
[351061123,1738320641758,-500.0,0.00016438,2]
[351061124,1738320641768,-500.0,0.00016438,2]
[351061125,1738320641777,-500.0,0.00016438,2]
[351061126,1738320641787,-500.0,0.00016438,2]
[351061127,1738320641800,-3101.31,0.00016438,2]
[351061128,1738320641810,-500.0,0.00016438,2]
[351061129,1738320641819,-500.0,0.00016438,2]
[351061130,1738320641829,-500.0,0.00016438,2]
[351061131,1738320641840,-1255.1,0.00016438,2]
[351061132,1738320641849,-657.62,0.00016438,2]
[351061133,1738320641858,-624.66,0.00016438,2]
[351061134,1738320641868,-500.0,0.00016438,2]
[351061135,1738320641878,-1130.24,0.00016438,2]
[351061136,1738320641889,-500.0,0.00016438,2]
[351061137,1738320641900,-500.0,0.00016438,2]
[351061138,1738320641911,-500.0,0.00016438,2]
[351061139,1738320641921,-500.0,0.00016438,2]
[351061140,1738320641930,-500.0,0.00016438,2]
[351061141,1738320641939,-1132.57,0.00016438,2]
[351061142,1738320641948,-1032.77,0.00016438,2]
[351061143,1738320641957,-321.07386052,0.00016438,2]
[351061144,1738320641967,-500.0,0.00016438,2]
[351061145,1738320641976,-500.0,0.00016438,2]
[351061146,1738320641985,-500.0,0.00016438,2]
[351061147,1738320641994,-1000.0,0.00016438,30]
[351061148,1738320642003,-1127.74,0.00016438,2]
[351061149,1738320642012,-1567.28,0.00016438,2]
[351061150,1738320642022,-500.0,0.00016438,2]
[351061151,1738320642031,-500.0,0.00016438,2]
[351061152,1738320642040,-500.0,0.00016438,2]
[351061153,1738320642049,-500.0,0.00016438,2]
[351061154,1738320642058,-552.22,0.00016438,2]
[351061155,1738320642067,-500.0,0.00016438,2]
[351061156,1738320642077,-505.10474238,0.00016438,2]
[351061157,1738320642087,-500.0,0.00016438,2]
[351061158,1738320642096,-500.0,0.00016438,2]
[351061159,1738320642107,-500.0,0.00016438,2]
[351061160,1738320642119,-500.0,0.00016438,2]
[351061161,1738320642128,-500.0,0.00016438,2]
[351061162,1738320642138,-1164.69,0.00016438,2]
[351061163,1738320642148,-500.0,0.00016438,2]
[351061164,1738320642158,-626.03,0.00016438,2]
[351061165,1738320642169,-675.26,0.00016438,2]
[351061166,1738320642178,-500.0,0.00016438,2]
[351061167,1738320642188,-500.0,0.00016438,2]
[351061168,1738320642198,-500.0,0.00016438,2]
[351061169,1738320642207,-500.0,0.00016438,2]
[351061170,1738320642217,-961.04,0.00016438,2]
[351061171,1738320642226,-500.0,0.00016438,2]
[351061172,1738320642235,-500.0,0.00016438,2]
[351061173,1738320642244,-500.0,0.00016438,2]
[351061174,1738320642253,-500.0,0.00016438,2]
[351061175,1738320642262,-950.62,0.00016438,2]
[351061176,1738320642271,-503.19598375,0.00016438,2]
[351061177,1738320642280,-500.0,0.00016438,2]
[351061178,1738320642289,-500.0,0.00016438,2]
[351061180,1738320642299,-500.0,0.00016438,2]
[351061182,1738320642308,-500.0,0.00016438,2]
[351061184,1738320642317,-1556.21,0.00016438,2]
[351061187,1738320642326,-721.39,0.00016438,2]
[351061189,1738320642337,-1536.22,0.00016438,2]
[351061193,1738320642346,-500.0,0.00016438,2]
[351061197,1738320642366,-557.0,0.00016438,2]
[351061199,1738320642375,-500.0,0.00016438,2]
[351061202,1738320642385,-500.0,0.00016438,2]
[351061205,1738320642395,-500.0,0.00016438,2]
[351061209,1738320642404,-500.0,0.00016438,2]
[351061211,1738320642413,-500.0,0.00016438,2]
[351061214,1738320642422,-500.0,0.00016438,2]
[351061217,1738320642432,-500.0,0.00016438,2]
[351061218,1738320642441,-1051.5,0.00016438,2]
[351061219,1738320642450,-684.0,0.00016438,2]
[351061220,1738320642460,-1316.17,0.00016438,2]
[351061221,1738320642469,-500.0,0.00016438,2]
[351061222,1738320642479,-500.0,0.00016438,2]
[351061223,1738320642488,-1278.54,0.00016438,2]
[351061224,1738320642498,-500.0,0.00016438,2]
[351061225,1738320642507,-500.0,0.00016438,2]
[351061226,1738320642517,-1286.42,0.00016438,2]
[351061227,1738320642526,-500.0,0.00016438,2]
[351061228,1738320642536,-500.0,0.00016438,2]
[351061229,1738320642545,-665.41,0.00016438,2]
[351061230,1738320642554,-500.0,0.00016438,2]
[351061231,1738320642564,-500.0,0.00016438,2]
[351061232,1738320642573,-817.63,0.00016438,2]
[351061233,1738320642584,-1403.74,0.00016438,2]
[351061234,1738320642594,-1381.92,0.00016438,2]
[351061235,1738320642604,-500.0,0.00016438,2]
[351061236,1738320642614,-500.0,0.00016438,2]
[351061237,1738320642623,-500.0,0.00016438,2]
[351061238,1738320642633,-647.25,0.00016438,2]
[351061239,1738320642642,-948.63,0.00016438,2]
[351061240,1738320642652,-1987.36,0.00016438,2]
[351061241,1738320642662,-559.66825781,0.00016438,2]
[351061242,1738320642671,-500.0,0.00016438,2]
[351061243,1738320642681,-500.0,0.00016438,2]
[351061244,1738320642690,-500.0,0.00016438,2]
[351061245,1738320642700,-1500.46,0.00016438,2]
[351061246,1738320642709,-500.0,0.00016438,2]
[351061247,1738320642718,-540.76033735,0.00016438,2]
[351061248,1738320642728,-500.0,0.00016438,2]
[351061249,1738320642737,-500.0,0.00016438,2]
[351061250,1738320642747,-798.31,0.00016438,2]
[351061251,1738320642756,-502.94884594,0.00016438,2]
[351061252,1738320642765,-500.0,0.00016438,2]
[351061253,1738320642774,-500.0,0.00016438,2]
[351061254,1738320642783,-500.0,0.00016438,2]
[351061255,1738320642792,-870.61,0.00016438,2]
[351061256,1738320642801,-500.0,0.00016438,2]
[351061257,1738320642810,-500.0,0.00016438,2]
[351061258,1738320642820,-793.69,0.00016438,2]
[351061259,1738320642829,-810.29,0.00016438,2]
[351061260,1738320642842,-501.10132407,0.00016438,2]
[351061261,1738320642852,-500.0,0.00016438,2]
[351061262,1738320642861,-500.0,0.00016438,2]
[351061263,1738320642870,-375.10468798,0.00016438,2]
[351061264,1738320642880,-500.7726414,0.00016438,2]
[351061265,1738320642889,-500.0,0.00016438,2]
[351061266,1738320642900,-500.0,0.00016438,2]
[351061267,1738320642910,-500.0,0.00016438,2]
[351061268,1738320642921,-500.0,0.00016438,2]
[351061269,1738320642931,-509.80468206,0.00016438,2]
[351061270,1738320642940,-74.7777882,0.00016438,2]
[351061271,1738320643494,-1020.5722118,0.00016438,2]
[351061272,1738320643505,-584.22,0.00016438,2]
[351061273,1738320643515,-428.04287061,0.00016438,2]
[351061274,1738320643540,-71.95712939,0.00016438,2]
[351061276,1738320643550,-500.0,0.00016438,2]
[351061278,1738320643559,-495.64763301,0.00016438,2]
[351061280,1738320643571,-4.35236699,0.00016438,2]
[351061281,1738320643580,-329.34321147,0.00016438,2]
[351061282,1738320643592,-535.81,0.00016438,2]
[351061284,1738320643602,-121.81411707,0.00016438,2]
[351061286,1738320643614,-344.74852707,0.00016438,2]
[351061288,1738320643631,-33.43735586,0.00016438,2]
[351061289,1738320643640,-611.89573759,0.00016438,2]
[351061290,1738320643650,-948.74,0.00016438,2]
[351061291,1738320643660,-766.86,0.00016438,2]
[351061292,1738320643670,-500.0,0.00016438,2]
[351061293,1738320643680,-40.25469658,0.00016438,2]
[351061294,1738320643692,-370.81769919,0.00016438,2]
[351061295,1738320643703,-88.92760423,0.00016438,2]
[351061296,1738320643712,-1206.28,0.00016438,2]
[351061297,1738320643723,-500.0,0.00016438,2]
[351061298,1738320643732,-66.38139578,0.00016438,2]
[351061299,1738320643743,-448.1102413,0.00016438,2]
[351061300,1738320643753,-1387.14,0.00016438,2]
[351061301,1738320643762,-154.15025168,0.00016438,2]
[351061302,1738320643811,-636.19974832,0.00016438,2]
[351061303,1738320643820,-500.0,0.00016438,2]
[351061304,1738320643829,-500.0,0.00016438,2]
[351061305,1738320643839,-500.0,0.00016438,2]
[351061306,1738320643848,-500.0,0.00016438,2]
[351061307,1738320643857,-500.0,0.00016438,2]
[351061308,1738320643866,-500.0,0.00016438,2]
[351061309,1738320643875,-500.0,0.00016438,2]
[351061310,1738320643884,-500.0,0.00016438,2]
[351061311,1738320643894,-500.0,0.00016438,2]
[351061312,1738320643903,-500.0,0.00016438,2]
[351061313,1738320643912,-209.99552884,0.00016438,2]
[351061314,1738320643921,-500.0,0.00016438,2]
[351061315,1738320643930,-795.32,0.00016438,2]
[351061316,1738320643940,-901.59,0.00016438,2]
[351061317,1738320643949,-500.0,0.00016438,2]
[351061318,1738320643958,-500.0,0.00016438,2]
[351061319,1738320643967,-964.25,0.00016438,2]
[351061320,1738320643976,-500.0,0.00016438,2]
[351061321,1738320643985,-500.0,0.00016438,2]
[351061322,1738320643995,-1065.51,0.00016438,2]
[351061323,1738320644004,-500.0,0.00016438,2]
[351061324,1738320644013,-500.0,0.00016438,2]
[351061325,1738320644023,-536.55,0.00016438,2]
[351061326,1738320644032,-525.63751268,0.00016438,2]
[351061327,1738320644041,-465.00981262,0.00016438,2]
[351061328,1738320644051,-500.0,0.00016438,2]
[351061329,1738320644060,-601.74,0.00016438,2]
[351061330,1738320644070,-500.0,0.00016438,2]
[351061331,1738320644079,-975.31,0.00016438,2]
[351061332,1738320644090,-500.0,0.00016438,2]
[351061333,1738320644099,-500.0,0.00016438,2]
[351061334,1738320644112,-1345.02,0.00016438,2]
[351061335,1738320644121,-500.0,0.00016438,2]